bitfinex/quotes_ETHUSD_20250214
["timestamp","ask_amount","ask_price","bid_price","bid_amount"]
[1739556826353,3.59005,2785.5,2785.0,3.59066]
[1739556826502,0.55,2785.5,2785.1,3.59048]
[1739556826701,0.55,2785.5,2785.2,3.59039]
[1739556827129,5.39,2785.8,2785.4,3.59013]
[1739556827347,5.39,2785.8,2785.5,1.1727]
[1739556827532,5.39,2785.8,2785.7,3.58976]
[1739556827936,5.39,2785.8,2785.6,3.58989]
[1739556828135,5.39,2785.8,2785.7,3.58976]
[1739556832156,5.39,2786.1,2785.9,3.58948]
[1739556833856,5.39,2786.1,2785.8,3.58962]
[1739556837473,5.39,2786.1,2785.8,3.58954]
[1739556837670,5.39,2786.1,2785.5,1.1727]
[1739556838085,5.39,2786.1,2785.8,3.58956]
[1739556839191,5.39,2786.1,2785.7,0.03589371]
[1739556839373,5.39,2786.1,2786.0,3.58937]
[1739556840173,5.39,2786.1,2785.8,3.0]
[1739556840440,5.39,2786.1,2785.8,3.58962]
[1739556843080,5.39,2786.1,2786.0,3.58937]
[1739556843242,5.39,2786.1,2785.7,3.58968]
[1739556843440,5.39,2786.1,2785.7,3.58963]
[1739556843748,5.39,2786.1,2785.6,3.5898]
[1739556843942,5.39,2786.1,2785.6,7.17961]
[1739556844285,0.0075,2785.8,2785.0,1.1348]
[1739556844584,0.55,2785.3,2784.8,3.59092]
[1739556844752,1.1286,2785.1,2784.8,3.59083]
[1739556845593,6.5186,2785.1,2784.4,1.1348]
[1739556845794,6.5186,2785.1,2784.8,3.59085]
[1739556846072,5.39,2785.1,2785.0,3.59066]
[1739556849815,5.39,2785.1,2784.9,3.59079]
[1739556849959,4.1406,2785.1,2784.6,3.59111]
[1739556850160,0.55,2784.9,2784.1,1.1651]
[1739556850428,5.39,2785.0,2784.1,1.1651]
[1739556850429,0.55,2784.5,2784.1,3.5917]
[1739556850718,0.55,2784.3,2783.8,3.59213]
[1739556850916,0.55,2784.1,2783.8,3.59213]
[1739556851060,1.7818,2784.1,2783.5,3.59249]
[1739556851257,0.55,2784.0,2783.5,3.59249]
[1739556851456,5.94,2784.0,2783.5,3.59249]
[1739556852099,0.0075,2783.9,2783.3,3.59279]
[1739556852272,0.55,2783.8,2783.3,3.59279]
[1739556852478,0.5575,2783.9,2783.3,7.18552]
[1739556852679,0.55,2783.9,2783.4,3.59259]
[1739556853385,0.55,2783.9,2783.5,3.59254]
[1739556853589,0.55,2783.9,2783.8,3.59221]
[1739556853761,5.39,2784.0,2783.9,3.59208]
[1739556853975,5.94,2784.0,2783.9,3.59208]
[1739556854176,5.39,2784.0,2783.9,3.59208]
[1739556855087,5.39,2784.0,2783.8,3.59221]
[1739556855492,0.55,2783.9,2783.7,3.59233]
[1739556855791,0.55,2783.9,2783.8,3.59221]
[1739556855987,5.39,2784.0,2783.7,3.59234]
[1739556856189,5.39,2784.0,2783.9,3.59208]
[1739556858408,5.94,2784.3,2784.2,3.59169]
[1739556859024,5.39,2784.3,2784.2,3.59169]
[1739556859829,5.39,2784.5,2784.4,3.59143]
[1739556860141,5.39,2784.5,2784.3,3.59156]
[1739556860142,5.39,2784.7,2784.5,3.5913]
[1739556860307,0.55,2784.6,2784.4,3.59142]
[1739556860834,0.55,2784.6,2784.3,3.59149]
[1739556860998,0.55,2784.6,2784.0,1.1676]
[1739556861177,0.55,2784.6,2784.0,3.59194]
[1739556861377,0.55,2784.6,2784.2,3.59167]
[1739556862000,0.55,2784.3,2783.8,3.59211]
[1739556862202,1.6794,2784.1,2783.6,3.5924]
[1739556862541,1.6794,2784.1,2783.4,3.59271]
[1739556862542,4.1421,2783.9,2783.4,3.59271]
[1739556862829,0.55,2783.7,2783.2,3.59295]
[1739556863130,0.55,2783.3,2782.8,7.18688]
[1739556863301,1.1294,2783.2,2783.0,3.5932]
[1739556863680,1.6794,2783.2,2783.1,3.59311]
[1739556863977,1.1294,2783.7,2783.1,3.59311]
[1739556864381,0.55,2783.6,2783.1,3.59311]
[1739556864793,0.55,2783.6,2783.1,3.59301]
[1739556865125,0.55,2783.6,2783.3,3.59282]
[1739556865366,0.55,2783.6,2783.4,3.59272]
[1739556865560,0.55,2783.6,2783.3,3.59282]
[1739556867039,0.55,2783.6,2783.1,3.59309]
[1739556867239,0.55,2783.6,2783.2,3.59296]
[1739556867558,8.98267,2783.5,2782.9,3.59329]
[1739556867860,8.98267,2783.5,2783.4,35.0]
[1739556868079,10.67707,2783.5,2783.4,35.0]
[1739556869135,14.42281594,2783.5,2783.4,35.0]
[1739556869564,15.13498786,2783.5,2783.4,35.0]
[1739556871379,11.38174192,2783.5,2783.4,35.0]
[1739556872591,7.23157192,2783.5,2783.4,35.0]
[1739556872899,11.37416192,2783.5,2783.4,35.0]
[1739556873390,7.0694,2783.5,2783.4,35.0]
[1739556874738,5.94,2783.5,2783.4,38.59272]
[1739556877154,5.39,2783.5,2783.4,38.59272]
[1739556877354,5.39,2783.5,2783.4,42.21748439]
[1739556877690,5.94,2783.7,2783.6,3.59247]
[1739556878574,5.94,2783.7,2783.6,38.59247]
[1739556879087,1.1037,2784.5,2783.6,36.1437]
[1739556879268,1.1037,2784.5,2783.1,0.298]
[1739556879269,3.59143,2784.4,2783.3,1.1437]
[1739556879469,0.71214335,2784.2,2783.9,3.592]
[1739556879675,0.71214335,2784.2,2784.1,35.0]
[1739556879877,1.26214335,2784.2,2784.1,35.0]
[1739556883862,5.96503335,2784.2,2784.1,35.0]
[1739556884074,12.71898021,2784.2,2784.1,35.0]
[1739556884590,8.97253335,2784.2,2784.1,35.0]
[1739556886092,8.96503335,2784.2,2784.1,35.0]
[1739556886701,8.97253335,2784.2,2784.1,35.0]
[1739556887316,8.96503335,2784.2,2784.1,35.0]
[1739556887519,1.81584335,2784.2,2784.1,35.0]
[1739556887972,1.26214335,2784.2,2784.1,35.0]
[1739556888504,6.65214335,2784.2,2784.1,35.0]
[1739556888706,10.25133335,2784.2,2784.1,35.0]
[1739556889478,6.65964335,2784.2,2784.1,35.0]
[1739556889873,10.25133335,2784.2,2784.1,35.0]
[1739556890073,6.65964335,2784.2,2784.1,35.0]
[1739556890570,10.25133335,2784.2,2784.1,35.0]
[1739556891270,6.65964335,2784.2,2784.1,35.0]
[1739556891476,10.25133335,2784.2,2784.1,35.0]
[1739556892214,11.35503335,2784.2,2784.1,35.0]
[1739556892576,18.10898021,2784.2,2784.1,35.0]
[1739556892773,21.64898021,2784.2,2784.1,35.0]
[1739556893285,0.0075,2783.6,2783.0,3.59317]
[1739556893491,4.15007,2783.6,2783.1,3.59307]
[1739556893793,0.5575,2783.6,2783.2,3.59297]
[1739556894195,0.5575,2783.6,2783.5,35.0]
[1739556894588,4.14997,2783.6,2783.5,35.0]
[1739556895177,0.5575,2783.6,2783.5,35.0]
[1739556895579,4.14997,2783.6,2783.5,35.0]
[1739556895910,4.14997,2783.6,2783.0,7.18628]
[1739556895911,0.5575,2783.6,2783.0,3.59313]
[1739556896109,0.5575,2783.6,2783.2,3.59298]
[1739556896110,1.29380031,2783.6,2783.2,3.59298]
[1739556896282,1.28630031,2783.6,2783.4,3.59272]
[1739556896611,1.28630031,2783.6,2783.3,35.0]
[1739556896905,1.46971091,2783.6,2783.2,3.59287]
[1739556897108,1.46971091,2783.6,2783.3,3.59282]
[1739556897315,1.46971091,2783.6,2783.5,35.0]
[1739556897510,0.7334106,2783.6,2783.5,35.0]
[1739556897714,3.59202,2784.0,2783.5,38.59259]
[1739556897909,3.59202,2784.0,2783.5,3.59259]
[1739556898311,0.55,2783.9,2783.4,3.59265]
[1739556898515,0.55,2783.6,2783.5,3.59254]
[1739556898717,1.1783,2784.1,2783.0,3.59321]
[1739556898878,1.1708,2784.1,2784.0,35.0]
[1739556899085,5.39,2784.1,2784.0,38.59195]
[1739556899331,0.73493546,2784.2,2784.1,3.59182]
[1739556899819,0.73493546,2784.2,2784.1,3.62773667]
[1739556899988,5.39,2784.2,2784.1,39.67902]
[1739556900183,5.39,2785.0,2784.1,39.71196439]
[1739556900421,5.39,2785.0,2784.7,3.59102]
[1739556900720,5.39,2785.0,2784.7,4.67822]
[1739556901023,5.39,2785.0,2784.9,35.0]
[1739556901381,5.39,2785.2,2785.0,3.59066]
[1739556901581,5.39,2785.3,2785.1,3.59053]
[1739556901884,5.39,2785.7,2785.4,3.59006]
[1739556902103,5.39,2786.0,2785.4,3.59006]
[1739556902399,5.39,2786.0,2785.7,35.0]
[1739556902783,8.97938,2786.0,2785.7,35.0]
[1739556902989,3.58963,2785.8,2785.7,35.0]
[1739556903302,4.76793,2785.8,2785.7,35.0]
[1739556903514,10.70793,2785.8,2785.7,35.0]
[1739556903847,10.71543,2785.8,2785.7,35.0]
[1739556904492,10.70793,2785.8,2785.7,35.0]
[1739556904690,7.1108,2785.8,2785.7,35.0]
[1739556904944,5.39,2785.8,2785.7,35.0]
[1739556905090,5.39,2785.8,2785.7,38.58976]
[1739556905485,5.39,2785.8,2785.7,35.0]
[1739556906144,5.94,2785.8,2785.7,35.0]
[1739556906647,9.52963,2785.8,2785.7,35.0]
[1739556907432,9.53713,2785.8,2785.7,35.0]
[1739556910379,9.52963,2785.8,2785.7,35.0]
[1739556910729,12.52963,2785.8,2785.7,35.0]
[1739556911235,5.94,2785.8,2785.7,35.0]
[1739556911562,5.39,2785.8,2785.7,39.5116295]
[1739556911937,5.39,2785.8,2785.7,35.9218695]
[1739556912141,5.39,2785.8,2785.7,35.0]
[1739556913471,5.39,2785.8,2785.7,38.58976]
[1739556913765,5.39,2785.8,2785.7,35.0]
[1739556914286,5.39,2785.8,2785.7,38.58976]
[1739556914957,0.18247676,2786.2,2785.9,3.58943]
[1739556914958,5.39,2786.1,2785.9,3.58943]
[1739556915291,5.39,2786.1,2785.7,38.58965]
[1739556915575,5.39,2786.1,2785.9,3.58948]
[1739556915977,5.39,2786.1,2786.0,39.66377]
[1739556916180,5.39,2786.6,2786.3,3.58889]
[1739556916479,0.55,2786.5,2786.1,3.5892]
[1739556916646,5.39,2786.6,2786.0,1.0744]
[1739556916979,3.58892,2786.4,2785.9,3.58943]
[1739556917139,0.55,2786.5,2786.3,35.0]
[1739556917342,5.23906,2786.4,2786.3,35.0]
[1739556918976,0.55,2786.4,2786.3,35.0]
[1739556920659,5.39,2786.6,2786.4,3.58885]
[1739556920858,5.39,2786.7,2786.6,3.5886]
[1739556921082,5.57134537,2786.9,2786.6,3.58849]
[1739556921442,5.57134537,2786.9,2786.7,35.0]
[1739556921856,5.57134537,2786.9,2786.7,3.58846]
[1739556922416,5.39,2786.9,2786.8,38.58834]
[1739556922556,5.39,2786.9,2786.8,35.0]
[1739556923491,5.39,2786.9,2786.8,38.58834]
[1739556923662,5.39,2786.9,2786.8,35.0]
[1739556926185,0.55,2787.0,2786.8,35.0]
[1739556926389,5.39,2787.1,2786.9,3.58818]
[1739556926696,5.39,2787.1,2786.9,7.1764]
[1739556926855,5.39,2787.1,2786.9,3.5882]
[1739556927055,5.39,2787.1,2787.0,35.0]
[1739556927481,5.39,2787.1,2787.0,38.58808]
[1739556927869,5.39,2787.1,2787.0,35.0]
[1739556928375,5.39,2787.1,2787.0,38.58808]
[1739556928575,5.39,2787.1,2787.0,40.25119802]
[1739556928797,5.39,2787.3,2787.2,3.58783]
[1739556929616,5.39,2787.3,2787.2,39.74983]
[1739556929758,5.39,2787.3,2787.2,42.7296802]
[1739556930103,5.39,2787.9,2787.2,39.1418502]
[1739556930326,5.39,2787.9,2787.8,3.58705]
[1739556930606,9.68550242,2788.3,2787.8,1.162]
[1739556930809,9.68550242,2788.3,2787.8,36.162]
[1739556930987,9.68550242,2788.3,2787.8,39.74904]
[1739556931304,0.55,2788.2,2787.8,1.162]
[1739556931502,3.58661,2788.2,2787.8,1.162]
[1739556931717,3.58661,2788.2,2788.1,35.0]
[1739556931861,3.58745,2787.5,2787.2,1.162]
[1739556932066,8.97758,2787.4,2786.9,4.75013]
[1739556932303,8.97758,2787.4,2786.7,1.162]
[1739556932304,0.55,2787.2,2786.7,1.162]
[1739556932466,4.1379,2787.2,2786.7,4.75043]
[1739556932982,4.13808,2787.1,2787.0,35.0]
[1739556933179,5.39,2787.4,2787.1,7.17573]
[1739556933393,0.55,2787.3,2787.0,35.0]
[1739556933623,0.55,2787.1,2786.7,1.162]
[1739556933796,4.13796,2787.1,2786.7,1.162]
[1739556934119,0.55,2787.1,2787.0,35.0]
[1739556935382,3.58775,2787.3,2787.0,35.0]
[1739556935572,3.58775,2787.3,2786.8,3.58833]
[1739556935979,6.09115914,2787.4,2786.8,0.833881]
[1739556936195,5.39,2787.3,2786.8,3.58823]
[1739556936562,9.52776,2787.3,2787.2,35.0]
[1739556936866,5.94,2787.3,2787.2,35.0]
[1739556937369,9.5277,2787.3,2787.2,35.0]
[1739556937571,5.94,2787.3,2787.2,35.0]
[1739556937765,5.39,2787.3,2787.2,35.0]
[1739556939397,5.39,2787.3,2787.2,38.58783]
[1739556939702,5.39,2787.3,2787.2,38.62476439]
[1739556939898,5.39,2787.3,2787.2,35.0]
[1739556940263,10.5846,2787.3,2787.2,35.0]
[1739556943075,6.9969,2787.3,2787.2,35.0]
[1739556943280,5.94,2787.3,2787.2,35.0]
[1739556946800,10.5996,2787.3,2787.2,35.0]
[1739556947317,13.5996,2787.3,2787.2,35.0]
[1739556947511,0.55,2786.5,2785.8,1.0532]
[1739556947714,8.97893,2786.4,2785.9,3.58947]
[1739556947941,0.55,2786.3,2785.9,3.58947]
[1739556948481,0.55,2786.3,2786.0,35.32310227]
[1739556948919,0.55,2786.1,2786.0,35.32310227]
[1739556949227,0.55,2786.1,2784.9,3.59076]
[1739556949228,1.0569,2785.9,2785.0,1.0532]
[1739556949516,4.14035,2785.3,2784.7,4.64424]
[1739556949686,5.94,2785.3,2784.7,4.64424]
[1739556950218,0.55,2785.1,2784.7,1.0532]
[1739556950434,0.55,2784.9,2784.8,0.32337479]
[1739556950717,0.55,2784.9,2784.8,35.32337479]
[1739556951217,0.55,2785.1,2784.8,35.32337479]
[1739556951734,0.55,2785.1,2784.8,35.0]
[1739556952231,3.77367151,2785.2,2784.5,7.18249]
[1739556952408,0.55,2785.1,2784.5,3.59121]
[1739556952727,4.14054,2785.1,2785.0,35.0]
[1739556953428,1.26691921,2785.1,2785.0,35.0]
[1739556953629,5.39,2785.3,2785.0,38.35080788]
[1739556953804,5.39,2785.5,2785.3,3.59027]
[1739556954004,5.39,2785.8,2785.4,3.59013]
[1739556954349,5.39,2785.9,2785.7,35.0]
[1739556954491,1.1196,2785.7,2784.0,0.41643851]
[1739556954829,0.18163508,2784.7,2784.4,3.59142]
[1739556955042,0.18393267,2785.4,2784.6,3.59113]
[1739556955043,1.1196,2785.3,2784.6,3.59113]
[1739556955256,0.18393267,2785.4,2784.9,3.59071]
[1739556955490,0.18393267,2785.4,2784.7,3.59098]
[1739556955607,3.59084,2784.9,2784.5,1.1164]
[1739556955808,0.91420661,2785.4,2784.5,1.1164]
[1739556955809,0.18393267,2785.4,2784.8,3.59082]
[1739556956106,0.18393267,2785.4,2785.0,38.59064]
[1739556956306,3.77103502,2786.1,2785.1,1.1164]
[1739556956307,0.72955594,2785.8,2785.1,1.1164]
[1739556956506,4.31920594,2785.8,2785.3,3.59014]
[1739556956708,4.31920594,2785.8,2785.1,4.70689]
[1739556956896,4.31920594,2785.8,2785.7,35.0]
[1739556958445,4.13965,2785.8,2785.7,35.0]
[1739556958704,0.55,2785.8,2785.7,35.0]
[1739556958902,0.18176502,2786.1,2785.7,40.13532039]
[1739556959152,0.18176502,2786.1,2785.7,4.70607]
[1739556959445,0.18176502,2786.1,2785.8,3.58962]
[1739556959619,0.18176502,2786.1,2786.0,35.0]
[1739556959821,4.31075158,2786.4,2786.0,35.0]
[1739556960131,8.97867,2786.6,2785.9,3.58945]
[1739556960314,5.39,2786.6,2785.7,1.1164]
[1739556960517,11.9861,2786.6,2786.5,35.0]
[1739556961027,12.5361,2786.6,2786.5,35.0]
[1739556961405,11.9786,2786.6,2786.5,35.0]
[1739556961627,5.39,2786.6,2786.5,35.0]
[1739556962642,0.17980757,2787.0,2786.5,38.58862]
[1739556962942,3.58771,2787.3,2786.7,3.58847]
[1739556963147,3.58771,2787.3,2786.5,3.58868]
[1739556963329,3.58804,2787.1,2786.6,3.58859]
[1739556963641,3.58857,2786.7,2786.3,1.1164]
[1739556963846,3.58848,2786.7,2786.6,35.0]
[1739556964006,4.14598,2786.7,2786.6,35.0]
[1739556964207,4.32986065,2786.7,2786.6,35.0]
[1739556964906,7.33736065,2786.7,2786.6,35.0]
[1739556965107,7.33736065,2786.7,2785.4,1.1164]
[1739556965108,3.59,2785.6,2785.4,1.1164]
[1739556965354,3.59,2785.6,2785.0,4.70703]
[1739556965561,7.17999,2785.6,2785.0,1.1164]
[1739556965758,4.13999,2785.6,2785.5,35.0]
[1739556966351,0.55,2785.6,2785.5,35.0]
[1739556966568,4.13989,2785.6,2785.5,35.0]
[1739556968365,10.79633554,2785.6,2785.5,35.0]
[1739556970116,5.94,2784.3,2783.7,1.1407]
[1739556970315,5.94,2784.3,2783.7,1.61401]
[1739556970316,0.55,2784.1,2783.7,1.61401]
[1739556970948,5.39,2784.3,2783.9,3.59204]
[1739556971178,3.59174,2784.2,2783.7,0.47331]
[1739556971348,0.0075,2784.2,2783.3,3.59282]
[1739556971542,3.59966,2783.9,2783.2,1.1407]
[1739556971743,0.55,2783.6,2783.2,1.1407]
[1739556972249,3.59226,2783.8,2783.2,4.73366]
[1739556972646,0.55,2783.7,2783.2,1.1407]
[1739556972849,0.55,2783.8,2783.3,3.59284]
[1739556973268,3.59263,2783.5,2782.9,3.5933]
[1739556973470,0.55,2783.4,2782.8,1.1309]
[1739556973645,3.59263,2783.5,2782.8,1.1309]
[1739556974074,3.59263,2783.5,2782.8,4.72437]
[1739556974075,4.14281,2783.4,2782.8,4.72437]
[1739556974274,0.55,2783.4,2782.9,3.59328]
[1739556974476,0.55,2783.2,2782.8,4.72437]
[1739556974689,4.14285,2783.3,2782.8,1.1309]
[1739556974993,3.59263,2783.5,2782.8,1.1309]
[1739556974994,0.55,2783.4,2782.8,4.7243]
[1739556975192,0.55,2783.2,2782.8,1.1309]
[1739556975863,4.14306,2783.2,2782.8,1.1309]
[1739556976066,0.55,2783.2,2782.8,1.1309]
[1739556976290,3.59311,2783.1,2782.8,1.1309]
[1739556976489,0.55,2783.0,2782.4,1.1309]
[1739556976863,5.94,2783.0,2782.5,3.5938]
[1739556977286,9.53331,2783.0,2782.4,4.72489]
[1739556977469,9.53331,2783.0,2782.4,4.72483]
[1739556977669,9.53327,2783.0,2782.4,1.1309]
[1739556978059,0.0075,2782.7,2782.0,3.59452]
[1739556978393,5.39,2782.6,2782.1,3.59429]
[1739556978552,8.98376,2782.6,2782.1,3.59436]
[1739556978759,0.55,2782.4,2782.0,3.59446]
[1739556978959,0.55,2782.4,2781.8,1.1309]
[1739556979156,3.59449,2782.1,2781.6,3.59503]
[1739556979390,0.55,2782.2,2781.7,3.59491]
[1739556979654,4.14428,2782.2,2781.7,3.59491]
[1739556979859,0.55,2782.2,2781.7,3.59491]
[1739556980360,0.55,2782.2,2781.8,3.59471]
[1739556980873,0.55,2782.2,2781.9,3.59464]
[1739556981190,5.39,2782.3,2782.2,3.59427]
[1739556981394,6.4516,2782.6,2781.8,4.7256]
[1739556981573,0.55,2782.2,2781.8,4.7256]
[1739556981772,0.55,2782.2,2781.8,1.1309]
[1739556981972,0.55,2782.5,2782.2,3.59426]
[1739556982291,0.55,2782.5,2782.1,3.59435]
[1739556982473,4.14398,2782.5,2781.9,3.59465]
[1739556982801,4.14398,2782.5,2781.5,3.0]
[1739556982802,3.59429,2782.2,2781.5,3.59505]
[1739556982964,3.59489,2781.8,2781.2,3.59552]
[1739556983167,0.55,2781.7,2781.2,3.59549]
[1739556983410,0.55,2781.7,2781.1,1.1491]
[1739556983617,0.55,2781.7,2781.4,3.59521]
[1739556983766,0.55,2781.8,2781.4,3.59521]
[1739556984301,3.59522,2781.5,2780.8,3.59599]
[1739556984472,5.94,2781.4,2780.6,1.1491]
[1739556984802,5.39,2781.4,2781.2,3.59552]
[1739556984987,5.39,2781.4,2781.3,4.74454]
[1739556985305,8.98417,2782.3,2781.6,3.59492]
[1739556985479,3.59437,2782.2,2781.6,3.59496]
[1739556985682,3.59437,2782.2,2781.7,3.59491]
[1739556985881,8.98419,2782.3,2781.7,3.59491]
[1739556986189,5.39,2782.3,2781.7,3.59486]
[1739556986388,8.98418,2782.3,2781.7,3.59486]
[1739556986591,0.55,2782.1,2781.3,4.1491]
[1739556986900,5.39,2782.3,2782.0,3.59445]
[1739556987107,5.39,2782.3,2782.2,3.59427]
[1739556987314,0.55,2782.8,2782.1,3.5944]
[1739556987512,8.98342,2782.9,2782.3,3.59407]
[1739556987799,0.55,2782.8,2782.3,3.59407]
[1739556988303,3.59353,2782.8,2782.3,3.59404]
[1739556988603,3.59353,2782.8,2782.2,3.5942]
[1739556988900,4.14368,2782.7,2782.1,3.59434]
[1739556989074,3.59409,2782.4,2781.8,3.59477]
[1739556989281,0.55,2782.0,2781.4,1.1491]
[1739556989490,0.55,2782.0,2781.6,7.18987]
[1739556989694,0.55,2782.0,2781.6,3.59492]
[1739556989898,0.0075,2782.0,2781.1,0.32114244]
[1739556990103,0.55,2781.6,2781.3,3.59533]
[1739556990318,0.55,2781.6,2781.5,3.59518]
[1739556990985,5.39,2782.3,2781.8,3.59479]
[1739556991187,5.39,2782.3,2782.1,3.59438]
[1739556991420,0.0075,2782.3,2781.7,3.59489]
[1739556991605,0.5575,2782.3,2781.1,1.1491]
[1739556991777,3.59409,2782.4,2781.9,3.59464]
[1739556991779,0.55,2782.1,2781.9,3.59464]
[1739556991981,5.94,2782.1,2781.7,3.5949]
[1739556992213,5.94,2782.1,2781.5,3.5951]
[1739556992502,9.53443,2782.1,2781.6,3.59503]
[1739556992710,8.98443,2782.1,2781.5,3.5951]
[1739556992879,0.55,2782.0,2781.5,3.5951]
[1739556993082,0.55,2781.8,2781.4,3.59529]
[1739556993331,5.39,2782.1,2781.1,1.1491]
[1739556993479,5.39,2782.2,2781.7,3.59489]
[1739556993679,0.5575,2782.1,2781.5,3.5951]
[1739556993879,3.59453,2782.0,2781.5,7.1902]
[1739556994193,5.39,2782.3,2781.9,7.18913]
[1739556994420,5.39,2782.3,2781.7,4.74394]
[1739556994578,0.55,2782.2,2781.7,4.74394]
[1739556994930,0.55,2782.2,2781.9,3.59463]
[1739556995228,0.55,2782.2,2781.8,3.59477]
[1739556995638,0.55,2782.2,2781.9,3.59458]
[1739556995834,0.55,2782.2,2781.9,3.59455]
[1739556995992,0.55,2782.2,2781.6,3.59505]
[1739556996178,0.55,2782.2,2781.3,3.59533]
[1739556996502,0.55,2782.2,2781.4,3.59521]
[1739556996503,1.144,2781.8,2781.4,3.59521]
[1739556996701,1.144,2781.8,2781.4,3.59518]
[1739556997012,4.73887,2781.8,2780.9,1.1491]
[1739556997180,4.73887,2781.8,2781.2,3.59555]
[1739556997380,4.73887,2781.8,2781.3,3.59541]
[1739556997603,4.73887,2781.8,2781.2,3.59549]
[1739556997792,4.73887,2781.8,2781.3,3.59543]
[1739556997994,4.73887,2781.8,2781.2,7.19098]
[1739556998808,0.55,2781.6,2781.2,3.59549]
[1739556999011,4.14492,2781.7,2780.9,2.07501588]
[1739556999193,8.98505,2781.6,2781.1,3.59568]
[1739556999601,0.55,2781.3,2780.9,1.47341123]
[1739556999886,0.55,2781.1,2780.9,0.32431123]
[1739557000300,0.55,2781.0,2780.9,0.32431123]
[1739557001012,0.55,2781.0,2780.8,3.59606]
[1739557001207,0.55,2781.0,2780.9,3.59595]
[1739557001515,6.534,2781.6,2781.2,3.59548]
[1739557001745,6.534,2781.6,2781.2,7.19097]
[1739557001918,6.534,2781.6,2781.2,3.59548]
[1739557002244,0.55,2781.5,2781.3,3.91972123]
[1739557002444,0.55,2781.5,2781.3,0.32431123]
[1739557002818,0.55,2781.4,2781.3,0.32431123]
[1739557003153,4.14531,2781.4,2781.3,0.32431123]
[1739557003448,4.14531,2781.4,2781.3,0.32431123]
[1739557003610,0.55,2781.1,2780.9,0.32431123]
[1739557003810,0.55,2781.1,2780.9,3.92018123]
[1739557004007,5.39,2781.6,2780.9,1.18689135]
[1739557004218,5.39,2781.6,2781.3,3.59531]
[1739557004435,0.55,2781.5,2781.3,3.59531]
[1739557004639,0.55,2781.5,2781.3,3.59537]
[1739557004831,1.1515,2782.0,2781.1,3.59569]
[1739557005049,1.144,2782.0,2781.5,3.59507]
[1739557005255,4.73861,2782.0,2781.5,3.59507]
[1739557005452,0.55,2781.9,2781.5,3.59507]
[1739557005679,1.144,2782.0,2781.6,3.59497]
[1739557006126,0.55,2781.9,2781.7,0.32431123]
[1739557006539,10.12823,2782.3,2781.8,3.59479]
[1739557006734,0.7165016,2782.4,2782.0,4.85193482]
[1739557006935,3.59373,2782.7,2782.0,8.44634482]
[1739557007158,4.73743,2782.9,2782.3,3.59406]
[1739557007554,4.73737,2782.9,2782.2,3.59416]
[1739557007861,3.59362,2782.8,2782.2,3.59416]
[1739557008158,3.59368,2782.7,2782.2,3.59416]
[1739557008373,4.73737,2782.9,2782.4,3.59399]
[1739557008559,3.77700352,2783.1,2782.4,3.59399]
[1739557008727,5.39,2783.2,2783.0,3.59323]
[1739557008925,6.11139043,2783.3,2783.1,3.5931]
[1739557009137,6.11139043,2783.3,2782.9,3.59336]
[1739557009559,5.39,2783.3,2782.9,3.59336]
[1739557009762,5.39,2783.3,2783.0,3.59312]
[1739557009967,3.59963,2783.9,2783.2,3.59298]
[1739557009968,4.73613,2783.9,2783.2,3.59298]
[1739557010134,1.144,2783.9,2783.4,3.59264]
[1739557010636,8.98187,2784.1,2783.5,7.18511]
[1739557010837,8.98187,2784.1,2783.5,3.59252]
[1739557010838,0.0075,2784.0,2783.5,3.59252]
[1739557011152,8.98188,2784.1,2783.3,3.59279]
[1739557011459,8.98188,2784.1,2783.2,4.85193482]
[1739557011460,3.59212,2783.9,2783.6,0.32431123]
[1739557011632,8.98188,2784.1,2783.6,0.32431123]
[1739557011823,0.55,2784.0,2783.6,0.32431123]
[1739557012025,0.0075,2783.9,2783.6,0.32431123]
[1739557012228,5.26244,2783.7,2783.6,0.32431123]
[1739557012426,5.26244,2783.7,2782.9,1.1413]
[1739557012427,5.26244,2783.7,2782.9,5.05890123]
[1739557012660,3.015,2783.6,2782.9,0.32431123]
[1739557012831,3.59286,2783.3,2782.9,0.32431123]
[1739557013030,0.55,2783.2,2782.9,0.32431123]
[1739557013448,0.55,2783.0,2782.9,0.32431123]
[1739557013839,4.14342,2782.9,2782.4,0.32431123]
[1739557014041,0.55,2783.0,2782.4,0.32431123]
[1739557014343,0.55,2782.8,2782.4,0.32431123]
[1739557014544,0.55,2782.8,2782.5,3.59387]
[1739557014861,0.55,2782.9,2782.4,3.91830123]
[1739557015078,0.55,2782.7,2782.3,1.1413]
[1739557015370,0.55,2782.7,2782.2,3.59425]
[1739557015664,3.59438,2782.2,2781.7,1.1413]
[1739557015861,0.0075,2782.4,2781.7,4.73611]
[1739557016063,6.5101,2782.6,2781.7,4.73611]
[1739557016064,6.5101,2782.6,2782.0,3.59444]
[1739557016233,6.5101,2782.6,2782.1,3.59432]
[1739557016966,0.55,2782.5,2782.1,7.18861]